fUSD/lending_fUSD_20240419
["ID","MTS","AMOUNT","RATE_DAILY","PERIOD"]
[322908533,1713493839981,-298.18187236,0.00016438,2]
[322908535,1713493839992,-201.81812764,0.00016438,2]
[322908537,1713493840002,-500.0,0.00016438,2]
[322908539,1713493840011,-1433.95,0.00016438,2]
[322908541,1713493840020,-500.0,0.00016438,2]
[322908543,1713493840030,-500.0,0.00016438,2]
[322908545,1713493840039,-500.0,0.00016438,2]
[322908547,1713493840048,-500.0,0.00016438,2]
[322908549,1713493840058,-1111.62,0.00016438,2]
[322908551,1713493840067,-1136.24,0.00016438,2]
[322908553,1713493840076,-500.0,0.00016438,2]
[322908555,1713493840086,-1076.39,0.00016438,2]
[322908557,1713493840095,-985.54,0.00016438,2]
[322908559,1713493840105,-500.0,0.00016438,2]
[322908562,1713493840115,-930.02,0.00016438,2]
[322908564,1713493840124,-587.35,0.00016438,2]
[322908566,1713493840133,-500.0,0.00016438,2]
[322908568,1713493840143,-500.0,0.00016438,2]
[322908570,1713493840152,-1315.52,0.00016438,2]
[322908572,1713493840161,-508.83,0.00016438,2]
[322908574,1713493840171,-500.13845392,0.00016438,2]
[322908576,1713493840180,-1608.43,0.00016438,2]
[322908578,1713493840190,-1341.88,0.00016438,2]
[322908580,1713493840199,-500.0,0.00016438,2]
[322908582,1713493840208,-500.0,0.00016438,2]
[322908584,1713493840217,-500.0,0.00016438,2]
[322908586,1713493840227,-500.0,0.00016438,2]
[322908588,1713493840237,-500.0,0.00016438,2]
[322908590,1713493840246,-500.0,0.00016438,2]
[322908592,1713493840255,-500.0,0.00016438,2]
[322908594,1713493840264,-500.0,0.00016438,2]
[322908596,1713493840274,-500.0,0.00016438,2]
[322908598,1713493840283,-500.0,0.00016438,2]
[322908600,1713493840293,-500.0,0.00016438,2]
[322908602,1713493840305,-500.0,0.00016438,2]
[322908604,1713493840323,-630.13904495,0.00016438,2]
[322908606,1713493840332,-919.57,0.00016438,2]
[322908608,1713493840342,-765.73,0.00016438,2]
[322908610,1713493840351,-500.0,0.00016438,2]
[322908612,1713493840361,-500.0,0.00016438,2]
[322908614,1713493840371,-500.0,0.00016438,2]
[322908616,1713493840380,-500.0,0.00016438,2]
[322908618,1713493840390,-500.0,0.00016438,2]
[322908620,1713493840399,-500.0,0.00016438,2]
[322908622,1713493840409,-500.0,0.00016438,2]
[322908624,1713493840418,-500.0,0.00016438,2]
[322908626,1713493840428,-792.22,0.00016438,2]
[322908628,1713493840437,-845.61,0.00016438,2]
[322908631,1713493840447,-500.0,0.00016438,2]
[322908633,1713493840458,-500.0,0.00016438,2]
[322908635,1713493840467,-1360.53,0.00016438,2]
[322908637,1713493840476,-1587.88,0.00016438,2]
[322908639,1713493840485,-1911.53,0.00016438,2]
[322908641,1713493840495,-2663.79,0.00016438,2]
[322908643,1713493840504,-500.0,0.00016438,2]
[322908644,1713493840513,-500.0,0.00016438,2]
[322908646,1713493840523,-500.0,0.00016438,2]
[322908648,1713493840532,-500.0,0.00016438,2]
[322908651,1713493840541,-780.5,0.00016438,2]
[322908653,1713493840550,-871.69,0.00016438,2]
[322908655,1713493840565,-500.0,0.00016438,2]
[322908657,1713493840575,-500.0,0.00016438,2]
[322908659,1713493840584,-500.0,0.00016438,2]
[322908661,1713493840593,-955.0,0.00016438,2]
[322908662,1713493840604,-500.0,0.00016438,2]
[322908664,1713493840614,-925.67,0.00016438,2]
[322908667,1713493840624,-500.0,0.00016438,2]
[322908669,1713493840636,-538.65,0.00016438,2]
[322908671,1713493840646,-711.54,0.00016438,2]
[322908673,1713493840656,-500.0,0.00016438,2]
[322908675,1713493840666,-402.18248062,0.00016438,2]
[322908677,1713493840686,-97.81751938,0.00016438,2]
[322908679,1713493840696,-238.44679335,0.00016438,2]
[322908681,1713493840707,-500.0,0.00016438,2]
[322908683,1713493840717,-1766.84212402,0.00016438,2]
[322908690,1713493840769,-573.12787598,0.00016438,2]
[322908692,1713493840778,-1080.0,0.00016438,2]
[322908694,1713493840788,-758.98,0.00016438,2]
[322908696,1713493840798,-500.0,0.00016438,2]
[322908698,1713493840816,-547.16,0.00016438,2]
[322908700,1713493840825,-1572.16,0.00016438,2]
[322908702,1713493840835,-1183.81,0.00016438,2]
[322908704,1713493840845,-500.0,0.00016438,2]
[322908706,1713493840854,-1119.92,0.00016438,2]
[322908708,1713493840863,-2160.43,0.00016438,2]
[322908710,1713493840872,-513.75,0.00016438,2]
[322908712,1713493840881,-322.30684878,0.00016438,2]
[322908714,1713493840891,-884.66,0.00016438,2]
[322908716,1713493840900,-500.0,0.00016438,2]
[322908718,1713493840909,-1454.11,0.00016438,2]
[322908720,1713493840918,-1080.35,0.00016438,2]
[322908722,1713493840927,-606.29,0.00016438,2]
[322908724,1713493840936,-500.0,0.00016438,2]
[322908726,1713493840946,-500.0,0.00016438,2]
[322908728,1713493840956,-500.0,0.00016438,2]
[322908730,1713493840965,-964.56,0.00016438,2]
[322908732,1713493840975,-500.0,0.00016438,2]
[322908734,1713493840984,-2316.98,0.00016438,2]
[322908736,1713493840994,-500.0,0.00016438,2]
[322908738,1713493841003,-1002.8,0.00016438,2]
[322908740,1713493841012,-1703.03,0.00016438,2]
[322908742,1713493841021,-500.0,0.00016438,2]
[322908744,1713493841031,-863.66,0.00016438,2]
[322908746,1713493841040,-500.0,0.00016438,2]
[322908748,1713493841050,-1408.9,0.00016438,2]
[322908750,1713493841065,-647.85726329,0.00016438,2]
[322908752,1713493841074,-1439.4,0.00016438,2]
[322908754,1713493841084,-500.0,0.00016438,2]
[322908757,1713493841094,-1937.1,0.00016438,2]
[322908759,1713493841104,-1700.87,0.00016438,2]
[322908761,1713493841115,-500.0,0.00016438,2]
[322908763,1713493841125,-500.0,0.00016438,2]
[322908765,1713493841135,-840.5,0.00016438,2]
[322908767,1713493841145,-500.0,0.00016438,2]
[322908769,1713493841155,-500.0,0.00016438,2]
[322908771,1713493841165,-500.0,0.00016438,2]
[322908773,1713493841174,-590.43,0.00016438,2]
[322908775,1713493841183,-562.0,0.00016438,2]
[322908777,1713493841192,-500.0,0.00016438,2]
[322908779,1713493841203,-500.0,0.00016438,2]
[322908781,1713493841212,-500.0,0.00016438,2]
[322908783,1713493841222,-500.0,0.00016438,2]
[322908785,1713493841232,-500.0,0.00016438,2]
[322908787,1713493841242,-500.0,0.00016438,2]
[322908788,1713493841251,-500.0,0.00016438,2]
[322908789,1713493841262,-1266.18,0.00016438,2]
[322908790,1713493841272,-500.0,0.00016438,2]
[322908791,1713493841283,-879.16,0.00016438,2]
[322908792,1713493841293,-516.9468287,0.00016438,2]
[322908793,1713493841310,-1106.1,0.00016438,2]
[322908794,1713493841320,-651.12,0.00016438,2]
[322908796,1713493841330,-500.0,0.00016438,2]
[322908798,1713493841340,-659.45,0.00016438,2]
[322908800,1713493841349,-500.0,0.00016438,2]
[322908802,1713493841359,-500.0,0.00016438,2]
[322908804,1713493841369,-503.10028133,0.00016438,2]
[322908806,1713493841378,-500.0,0.00016438,2]
[322908808,1713493841388,-564.33838186,0.00016438,2]
[322908810,1713493841399,-252.72941406,0.00016438,2]
[322908812,1713493841408,-1441.3,0.00016438,2]
[322908814,1713493841418,-500.0,0.00016438,2]
[322908816,1713493841429,-1028.63,0.00016438,2]
[322908818,1713493841439,-500.0,0.00016438,2]
[322908820,1713493841448,-583.11,0.00016438,2]
[322908822,1713493841458,-982.9,0.00016438,2]
[322908824,1713493841468,-1603.44,0.00016438,2]
[322908826,1713493841478,-500.0,0.00016438,2]
[322908828,1713493841487,-500.0,0.00016438,2]
[322908830,1713493841498,-500.0,0.00016438,2]
[322908832,1713493841508,-2295.69,0.00016438,2]
[322908834,1713493841517,-500.35535326,0.00016438,2]
[322908836,1713493841527,-545.98,0.00016438,2]
[322908838,1713493841537,-1495.84,0.00016438,2]
[322908841,1713493841547,-868.55,0.00016438,2]
[322908843,1713493841562,-500.0,0.00016438,2]
[322908845,1713493841572,-500.0,0.00016438,2]
[322908847,1713493841582,-500.0,0.00016438,2]
[322908849,1713493841592,-500.0,0.00016438,2]
[322908851,1713493841602,-2166.59,0.00016438,2]
[322908853,1713493841612,-2072.73,0.00016438,2]
[322908855,1713493841623,-500.0,0.00016438,2]
[322908857,1713493841634,-1582.89,0.00016438,2]
[322908859,1713493841644,-500.0,0.00016438,2]
[322908861,1713493841653,-843.78,0.00016438,2]
[322908863,1713493841662,-500.0,0.00016438,2]
[322908865,1713493841672,-894.54,0.00016438,2]
[322908867,1713493841681,-797.38,0.00016438,2]
[322908869,1713493841691,-500.0,0.00016438,2]
[322908871,1713493841701,-500.0,0.00016438,2]
[322908873,1713493841711,-548.22,0.00016438,2]
[322908875,1713493841723,-215.04321979,0.00016438,2]
[322908877,1713493841732,-500.0,0.00016438,2]
[322908879,1713493841741,-500.0,0.00016438,2]
[322908881,1713493841751,-500.0,0.00016438,2]
[322908883,1713493841760,-676.77,0.00016438,2]
[322908885,1713493841770,-500.0,0.00016438,2]
[322908887,1713493841779,-801.19,0.00016438,2]
[322908889,1713493841789,-500.0,0.00016438,2]
[322908891,1713493841799,-1273.52,0.00016438,2]
[322908893,1713493841815,-500.0,0.00016438,2]
[322908895,1713493841825,-502.13,0.00016438,2]
[322908897,1713493841835,-500.0,0.00016438,2]
[322908899,1713493841846,-982.9,0.00016438,2]
[322908901,1713493841855,-500.0,0.00016438,2]
[322908903,1713493841865,-673.03,0.00016438,2]
[322908905,1713493841875,-832.6,0.00016438,2]
[322908907,1713493841884,-2079.85,0.00016438,2]
[322908909,1713493841894,-500.0,0.00016438,2]
[322908911,1713493841904,-1209.77,0.00016438,2]
[322908913,1713493841914,-485.41150995,0.00016438,2]
[322908916,1713493841924,-707.3,0.00016438,2]
[322908918,1713493841933,-2394.25,0.00016438,2]
[322908920,1713493841943,-1045.3,0.00016438,2]
[322908921,1713493841953,-500.0,0.00016438,2]
[322908923,1713493841963,-518.61,0.00016438,2]
[322908926,1713493841972,-582.76,0.00016438,2]
[322908928,1713493841982,-500.0,0.00016438,2]
[322908929,1713493841991,-1926.98,0.00016438,2]
[322908932,1713493842001,-564.59,0.00016438,2]
[322908934,1713493842010,-500.0,0.00016438,2]
[322908936,1713493842019,-1025.66,0.00016438,2]
[322908938,1713493842029,-578.08,0.00016438,2]
[322908940,1713493842038,-862.27,0.00016438,2]
[322908942,1713493842047,-500.0,0.00016438,2]
[322908944,1713493842062,-500.0,0.00016438,2]
[322908979,1713493842398,-718.1,0.00016438,2]
[322908981,1713493842409,-1210.9,0.00016438,2]
[322908983,1713493842421,-500.0,0.00016438,2]
[322908985,1713493842431,-500.0,0.00016438,2]
[322908988,1713493842441,-537.5,0.00016438,2]
[322908992,1713493842451,-500.0,0.00016438,2]
[322908994,1713493842461,-768.57,0.00016438,2]
[322908997,1713493842471,-500.0,0.00016438,2]
[322909000,1713493842480,-500.0,0.00016438,2]
[322909004,1713493842490,-500.0,0.00016438,2]
[322909008,1713493842499,-693.53,0.00016438,2]
[322909012,1713493842509,-832.5,0.00016438,2]
[322909016,1713493842519,-500.0,0.00016438,2]
[322909019,1713493842528,-500.0,0.00016438,2]
[322909021,1713493842538,-500.0,0.00016438,2]
[322909023,1713493842547,-511.65864291,0.00016438,2]
[322909025,1713493842561,-500.0,0.00016438,2]
[322909029,1713493842571,-500.0,0.00016438,2]
[322909033,1713493842581,-500.0,0.00016438,2]
[322909036,1713493842591,-1698.44,0.00016438,2]
[322909039,1713493842600,-500.0,0.00016438,2]
[322909043,1713493842611,-517.72160943,0.00016438,2]
[322909046,1713493842621,-500.0,0.00016438,2]
[322909048,1713493842630,-500.0,0.00016438,2]
[322909050,1713493842641,-1466.11,0.00016438,2]
[322909053,1713493842651,-918.9,0.00016438,2]
[322909056,1713493842661,-500.0,0.00016438,2]
[322909059,1713493842670,-1876.73,0.00016438,2]
[322909063,1713493842680,-563.72,0.00016438,2]
[322909066,1713493842689,-500.0,0.00016438,2]
[322909068,1713493842699,-500.0,0.00016438,2]
[322909070,1713493842710,-1855.42,0.00016438,2]
[322909072,1713493842719,-938.78,0.00016438,2]
[322909074,1713493842728,-500.0,0.00016438,2]
[322909076,1713493842737,-500.0,0.00016438,2]
[322909079,1713493842747,-500.0,0.00016438,2]
[322909081,1713493842757,-502.21753185,0.00016438,2]
[322909083,1713493842767,-500.0,0.00016438,2]
[322909085,1713493842775,-1072.35,0.00016438,2]
[322909087,1713493842784,-693.08,0.00016438,2]
[322909089,1713493842794,-500.0,0.00016438,2]
[322909091,1713493842808,-500.0,0.00016438,2]
[322909093,1713493842817,-500.0,0.00016438,2]
[322909095,1713493842826,-2668.44,0.00016438,2]
[322909097,1713493842836,-946.87,0.00016438,2]
[322909099,1713493842845,-1553.1,0.00016438,2]
[322909101,1713493842854,-500.0,0.00016438,2]
[322909103,1713493842864,-500.0,0.00016438,2]
[322909105,1713493842873,-500.0,0.00016438,2]
[322909107,1713493842883,-500.0,0.00016438,2]
[322909109,1713493842892,-1221.67,0.00016438,2]
[322909111,1713493842901,-500.0,0.00016438,2]
[322909113,1713493842911,-1499.98,0.00016438,2]
[322909115,1713493842920,-1178.29,0.00016438,2]
[322909117,1713493842930,-500.0,0.00016438,2]
[322909119,1713493842939,-1288.64,0.00016438,2]
[322909121,1713493842948,-500.0,0.00016438,2]
[322909123,1713493842957,-629.25,0.00016438,2]
[322909125,1713493842967,-500.0,0.00016438,2]
[322909126,1713493842976,-2411.34,0.00016438,2]
[322909127,1713493842985,-587.04,0.00016438,2]
[322909128,1713493842994,-500.0,0.00016438,2]
[322909129,1713493843003,-500.0,0.00016438,2]
[322909130,1713493843013,-500.0,0.00016438,2]
[322909131,1713493843022,-500.0,0.00016438,2]
[322909132,1713493843031,-1252.1,0.00016438,2]
[322909133,1713493843041,-500.0,0.00016438,2]
[322909134,1713493843051,-597.68,0.00016438,2]
[322909136,1713493843064,-1292.1,0.00016438,2]
[322909138,1713493843074,-500.0,0.00016438,2]
[322909140,1713493843083,-558.55,0.00016438,2]
[322909142,1713493843093,-2030.92,0.00016438,2]
[322909144,1713493843103,-500.0,0.00016438,2]
[322909146,1713493843112,-500.0,0.00016438,2]
[322909148,1713493843122,-761.11,0.00016438,2]
[322909150,1713493843131,-894.83,0.00016438,2]
[322909152,1713493843141,-500.0,0.00016438,2]
[322909154,1713493843151,-500.0,0.00016438,2]
[322909156,1713493843160,-1060.61,0.00016438,2]
[322909158,1713493843170,-500.0,0.00016438,2]
[322909160,1713493843179,-500.0,0.00016438,2]
[322909162,1713493843188,-500.0,0.00016438,2]
[322909164,1713493843197,-802.72,0.00016438,2]
[322909166,1713493843206,-500.0,0.00016438,2]
[322909168,1713493843216,-676.76,0.00016438,2]
[322909170,1713493843225,-1605.75,0.00016438,2]
[322909172,1713493843234,-500.0,0.00016438,2]
[322909174,1713493843244,-500.0,0.00016438,2]
[322909177,1713493843253,-500.0,0.00016438,2]
[322909179,1713493843262,-612.23,0.00016438,2]
[322909181,1713493843271,-500.0,0.00016438,2]
[322909185,1713493843281,-500.0,0.00016438,2]
[322909188,1713493843290,-696.47,0.00016438,2]
[322909190,1713493843300,-500.0,0.00016438,2]
[322909192,1713493843314,-500.0,0.00016438,2]
[322909193,1713493843323,-500.0,0.00016438,2]
[322909196,1713493843333,-1117.75,0.00016438,2]
[322909197,1713493843342,-601.93,0.00016438,2]
[322909200,1713493843352,-500.0,0.00016438,2]
[322909202,1713493843361,-1477.41,0.00016438,2]
[322909204,1713493843371,-500.0,0.00016438,2]
[322909206,1713493843381,-692.75,0.00016438,2]
[322909207,1713493843393,-500.0,0.00016438,2]
[322909210,1713493843404,-500.0,0.00016438,2]
[322909212,1713493843414,-500.0,0.00016438,2]
[322909214,1713493843424,-2779.66,0.00016438,2]
[322909216,1713493843434,-500.0,0.00016438,2]
[322909218,1713493843443,-500.0,0.00016438,2]
[322909220,1713493843453,-500.0,0.00016438,2]
[322909222,1713493843463,-553.72,0.00016438,2]
[322909224,1713493843472,-500.0,0.00016438,2]
[322909226,1713493843482,-1538.2,0.00016438,2]
[322909228,1713493843491,-500.0,0.00016438,2]
[322909230,1713493843501,-500.0,0.00016438,2]
[322909232,1713493843510,-1094.44,0.00016438,2]
[322909234,1713493843520,-500.0,0.00016438,2]
[322909236,1713493843529,-500.0,0.00016438,2]
[322909238,1713493843539,-1265.63,0.00016438,2]
[322909240,1713493843548,-585.01,0.00016438,2]
[322909242,1713493843563,-908.46,0.00016438,2]
[322909244,1713493843573,-500.0,0.00016438,2]
[322909246,1713493843582,-747.27,0.00016438,2]
[322909248,1713493843592,-1287.01,0.00016438,2]
[322909250,1713493843602,-500.0,0.00016438,2]
[322909252,1713493843613,-500.0,0.00016438,2]
[322909254,1713493843622,-568.18,0.00016438,2]
[322909256,1713493843633,-500.0,0.00016438,2]
[322909258,1713493843643,-1040.27,0.00016438,2]
[322909260,1713493843653,-567.47,0.00016438,2]
[322909262,1713493843662,-1866.97,0.00016438,2]
[322909264,1713493843671,-500.0,0.00016438,2]
[322909266,1713493843681,-886.6,0.00016438,2]
[322909268,1713493843690,-1020.57,0.00016438,2]
[322909270,1713493843699,-3416.49,0.00016438,2]
[322909272,1713493843711,-2499.09,0.00016438,2]
[322909274,1713493843720,-2000.0,0.00016438,2]
[322909276,1713493843730,-500.0,0.00016438,2]
[322909278,1713493843740,-500.0,0.00016438,2]
[322909280,1713493843749,-1847.18,0.00016438,2]
[322909282,1713493843759,-1052.34,0.00016438,2]
[322909284,1713493843768,-500.0,0.00016438,2]
[322909286,1713493843778,-2257.43,0.00016438,2]
[322909288,1713493843787,-500.0,0.00016438,2]
[322909290,1713493843797,-5855.71,0.00016438,2]
[322909293,1713493843810,-500.0,0.00016438,2]
[322909295,1713493843819,-910.52,0.00016438,2]
[322909297,1713493843829,-500.0,0.00016438,2]
[322909298,1713493843839,-798.53,0.00016438,2]
[322909300,1713493843849,-500.0,0.00016438,2]
[322909302,1713493843858,-2026.05,0.00016438,2]
[322909304,1713493843868,-3703.69,0.00016438,2]
[322909306,1713493843877,-500.0,0.00016438,2]
[322909308,1713493843886,-876.14,0.00016438,2]
[322909310,1713493843897,-500.23,0.00016438,2]
[322909312,1713493843906,-500.0,0.00016438,2]
[322909314,1713493843916,-1715.39,0.00016438,2]
[322909316,1713493843925,-1044.16,0.00016438,2]
[322909318,1713493843934,-3330.01,0.00016438,2]
[322909320,1713493843944,-500.0,0.00016438,2]
[322909322,1713493843952,-363.08526094,0.00016438,2]
[322909324,1713493843962,-500.0,0.00016438,2]
[322909326,1713493843972,-1215.25,0.00016438,2]
[322909329,1713493843982,-500.0,0.00016438,2]
[322909331,1713493843991,-1907.54,0.00016438,2]
[322909333,1713493844001,-2392.14,0.00016438,2]
[322909335,1713493844011,-640.56,0.00016438,2]
[322909337,1713493844021,-500.0,0.00016438,2]
[322909339,1713493844030,-500.0,0.00016438,2]
[322909341,1713493844039,-1042.48,0.00016438,2]
[322909343,1713493844048,-500.0,0.00016438,2]
[322909345,1713493844063,-500.0,0.00016438,2]
[322909347,1713493844073,-2432.51,0.00016438,2]
[322909349,1713493844083,-500.0,0.00016438,2]
[322909351,1713493844092,-500.0,0.00016438,2]
[322909353,1713493844102,-1303.76,0.00016438,2]
[322909355,1713493844112,-500.0,0.00016438,2]
[322909357,1713493844121,-500.0,0.00016438,2]
[322909359,1713493844131,-3337.17,0.00016438,2]
[322909361,1713493844140,-500.0,0.00016438,2]
[322909363,1713493844149,-500.0,0.00016438,2]
[322909365,1713493844158,-500.0,0.00016438,2]
[322909367,1713493844167,-500.0,0.00016438,2]
[322909369,1713493844176,-645.83,0.00016438,2]
[322909371,1713493844186,-894.52,0.00016438,2]
[322909373,1713493844196,-500.0,0.00016438,2]
[322909375,1713493844206,-4401.99,0.00016438,2]
[322909377,1713493844215,-500.0,0.00016438,2]
[322909379,1713493844225,-500.0,0.00016438,2]
[322909381,1713493844235,-500.0,0.00016438,2]
[322909383,1713493844245,-1317.67,0.00016438,2]
[322909385,1713493844255,-1332.49,0.00016438,2]
[322909387,1713493844265,-698.12,0.00016438,2]
[322909389,1713493844275,-1415.1,0.00016438,2]
[322909391,1713493844286,-987.36,0.00016438,2]
[322909393,1713493844296,-1558.04,0.00016438,2]
[322909395,1713493844314,-2421.11,0.00016438,2]
[322909397,1713493844325,-500.0,0.00016438,2]
[322909399,1713493844335,-500.0,0.00016438,2]
[322909401,1713493844345,-5482.03,0.00016438,2]
[322909403,1713493844356,-884.61,0.00016438,2]
[322909405,1713493844366,-500.0,0.00016438,2]
[322909407,1713493844376,-2300.78,0.00016438,2]
[322909409,1713493844386,-565.89701974,0.00016438,2]
[322909411,1713493844396,-2112.7,0.00016438,2]
[322909414,1713493844406,-1299.47,0.00016438,2]
[322909416,1713493844417,-500.0,0.00016438,2]
[322909418,1713493844428,-2128.38,0.00016438,2]
[322909419,1713493844439,-2280.36,0.00016438,2]
[322909421,1713493844450,-500.0,0.00016438,2]
[322909423,1713493844461,-500.0,0.00016438,2]
[322909426,1713493844471,-1462.13,0.00016438,2]
[322909428,1713493844482,-500.0,0.00016438,2]
[322909430,1713493844493,-500.0,0.00016438,2]
[322909432,1713493844503,-500.0,0.00016438,2]
[322909434,1713493844513,-500.0,0.00016438,2]
[322909436,1713493844522,-500.0,0.00016438,2]
[322909438,1713493844531,-1220.88,0.00016438,2]
[322909440,1713493844540,-500.0,0.00016438,2]
[322909441,1713493844551,-500.0,0.00016438,2]
[322909442,1713493844569,-834.7,0.00016438,2]
[322909443,1713493844577,-4650.46,0.00016438,2]
[322909444,1713493844586,-500.0,0.00016438,2]
[322909445,1713493844595,-500.0,0.00016438,2]
[322909446,1713493844605,-500.0,0.00016438,2]
[322909447,1713493844615,-3399.54,0.00016438,2]
[322909448,1713493844624,-500.0,0.00016438,2]
[322909450,1713493844635,-505.51,0.00016438,2]
[322909452,1713493844644,-2033.45,0.00016438,2]
[322909454,1713493844655,-500.0,0.00016438,2]
[322909456,1713493844664,-500.0,0.00016438,2]
[322909458,1713493844674,-833.69,0.00016438,2]
[322909461,1713493844684,-5979.94,0.00016438,2]
[322909463,1713493844693,-4247.81,0.00016438,2]
[322909465,1713493844704,-500.0,0.00016438,2]
[322909467,1713493844717,-1184.49,0.00016438,2]
[322909469,1713493844726,-500.0,0.00016438,2]
[322909471,1713493844735,-500.0,0.00016438,2]
[322909473,1713493844745,-500.0,0.00016438,2]
[322909475,1713493844754,-2170.49,0.00016438,2]
[322909477,1713493844763,-1514.0,0.00016438,2]
[322909490,1713493844879,-2154.07,0.00016438,2]
[322909492,1713493844890,-393.41,0.00016438,2]
[322909494,1713493844899,-500.0,0.00016438,2]
[322909496,1713493844907,-1333.98,0.00016438,2]
[322909498,1713493844916,-998.64,0.00016438,2]
[322909500,1713493844925,-1006.0,0.00016438,2]
[322909502,1713493844935,-500.0,0.00016438,2]
[322909504,1713493844944,-500.0,0.00016438,2]
[322909506,1713493844953,-1209.72,0.00016438,2]
[322909508,1713493844962,-500.0,0.00016438,2]
[322909510,1713493844971,-500.0,0.00016438,2]
[322909512,1713493844981,-4021.94,0.00016438,2]
[322909514,1713493844991,-2462.19,0.00016438,2]
[322909516,1713493845001,-500.0,0.00016438,2]
[322909518,1713493845010,-2246.65,0.00016438,2]
[322909520,1713493845019,-1490.29,0.00016438,2]
[322909522,1713493845028,-500.0,0.00016438,2]
[322909524,1713493845038,-964.02,0.00016438,2]
[322909526,1713493845047,-500.0,0.00016438,2]
[322909528,1713493845062,-1670.29,0.00016438,2]
[322909530,1713493845071,-500.0,0.00016438,2]
[322909532,1713493845080,-3455.05,0.00016438,2]
[322909534,1713493845090,-743.02,0.00016438,2]
[322909536,1713493845099,-500.0,0.00016438,2]
[322909538,1713493845109,-2499.09,0.00016438,2]
[322909540,1713493845118,-1417.04,0.00016438,2]
[322909542,1713493845128,-4242.94,0.00016438,2]
[322909544,1713493845137,-500.0,0.00016438,2]
[322909546,1713493845146,-500.0,0.00016438,2]
[322909548,1713493845155,-5000.0,0.00016438,2]
[322909550,1713493845165,-3254.01,0.00016438,2]
[322909552,1713493845174,-2078.35,0.00016438,2]
[322909554,1713493845183,-500.0,0.00016438,2]
[322909556,1713493845193,-500.0,0.00016438,2]
[322909558,1713493845202,-500.0,0.00016438,2]
[322909560,1713493845211,-1257.62,0.00016438,2]
[322909562,1713493845220,-3532.49,0.00016438,2]
[322909564,1713493845230,-798.21,0.00016438,2]
[322909567,1713493845240,-2161.29,0.00016438,2]
[322909569,1713493845249,-500.0,0.00016438,2]
[322909570,1713493845258,-1418.21,0.00016438,2]
[322909573,1713493845268,-500.0,0.00016438,2]
[322909575,1713493845277,-526.35444499,0.00016438,2]
[322909576,1713493845286,-2667.0,0.00016438,2]
[322909578,1713493845295,-500.0,0.00016438,2]
[322909580,1713493845305,-500.0,0.00016438,2]
[322909583,1713493845319,-2625.32,0.00016438,2]
[322909585,1713493845329,-1005.41,0.00016438,2]
[322909586,1713493845338,-1057.68,0.00016438,2]
[322909589,1713493845348,-1092.06,0.00016438,2]
[322909590,1713493845358,-588.58,0.00016438,2]
[322909593,1713493845367,-500.0,0.00016438,2]
[322909595,1713493845377,-500.0,0.00016438,2]
[322909597,1713493845386,-552.03,0.00016438,2]
[322909600,1713493845395,-1108.54,0.00016438,2]